bitfinex-derivatives/quotes_SOLF0:USTF0_20250516
["timestamp","ask_amount","ask_price","bid_price","bid_amount"]
[1747434406132,62.12,167.64,167.58,3.9638]
[1747434406530,68.0833,167.64,167.58,1.9713]
[1747434406730,62.12,167.64,167.58,1.9713]
[1747434407035,62.12,167.64,167.6,5.9646]
[1747434407233,5.9638,167.63,167.58,1.9713]
[1747434407535,5.9638,167.63,167.59,5.9648]
[1747434407835,5.9638,167.63,167.58,1.9713]
[1747434408135,68.0834,167.64,167.58,1.9713]
[1747434408735,5.9637,167.63,167.6,5.9644]
[1747434408935,5.9637,167.63,167.58,1.9713]
[1747434409237,5.9637,167.63,167.59,5.9649]
[1747434409638,5.964,167.62,167.59,5.9649]
[1747434409834,62.12,167.61,167.55,1.9453]
[1747434410136,62.12,167.6,167.55,1.9453]
[1747434410333,5.9652,167.59,167.56,5.9658]
[1747434410534,62.12,167.6,167.56,5.9658]
[1747434410740,5.9654,167.58,167.56,5.9658]
[1747434411544,5.9654,167.58,167.55,5.9663]
[1747434412446,62.12,167.6,167.53,5.9668]
[1747434412943,5.9662,167.56,167.53,5.9671]
[1747434413247,62.12,167.55,167.53,5.9671]
[1747434413648,62.12,167.55,167.54,5.9668]
[1747434415943,62.12,167.55,167.53,5.967]
[1747434416238,62.12,167.55,167.52,1.9748]
[1747434416443,62.12,167.55,167.53,5.9669]
[1747434416643,62.12,167.55,167.52,1.9748]
[1747434416945,62.12,167.55,167.5,2.0314]
[1747434417647,68.0867,167.55,167.5,2.0314]
[1747434417846,62.12,167.55,167.5,2.0314]
[1747434418751,62.12,167.55,167.52,5.9673]
[1747434419451,62.12,167.55,167.5,2.0314]
[1747434419950,68.0865,167.55,167.51,5.9676]
[1747434420552,68.0865,167.55,167.52,5.9675]
[1747434421047,62.12,167.55,167.54,5.9668]
[1747434421242,6.38801134,167.61,167.5,2.0314]
[1747434421448,124.26,167.6,167.5,2.0314]
[1747434421655,5.9662,167.56,167.5,2.0314]
[1747434421848,62.12,167.55,167.5,2.0314]
[1747434422052,68.0866,167.55,167.5,2.0314]
[1747434422745,62.12,167.55,167.5,2.0314]
[1747434423353,5.9668,167.54,167.5,2.0314]
[1747434423954,62.12,167.55,167.5,2.0314]
[1747434424151,68.0867,167.55,167.51,5.9676]
[1747434424655,68.0867,167.55,167.52,5.9674]
[1747434425051,5.9668,167.54,167.5,2.0314]
[1747434425250,5.9668,167.54,167.51,5.9675]
[1747434425452,62.12,167.55,167.5,2.0314]
[1747434425757,62.12,167.55,167.5,5.9682]
[1747434426257,5.9669,167.54,167.51,5.9676]
[1747434427152,5.9671,167.53,167.51,5.9676]
[1747434427349,5.9671,167.53,167.48,63.9974]
[1747434427552,5.9671,167.53,167.5,5.9681]
[1747434427763,5.9671,167.53,167.48,63.9974]
[1747434428062,68.0867,167.55,167.48,63.9974]
[1747434428254,62.12,167.55,167.48,63.9974]
[1747434428659,5.9672,167.53,167.5,5.9679]
[1747434428961,62.12,167.55,167.47,1.992]
[1747434429157,68.50801134,167.55,167.47,1.992]
[1747434429354,5.9681,167.51,167.48,5.9687]
[1747434429554,62.12,167.5,167.47,1.992]
[1747434429759,68.0883,167.5,167.47,5.9689]
[1747434429963,68.0883,167.5,167.42,66.0536]
[1747434429964,62.12,167.5,167.42,67.9992]
[1747434431156,62.12,167.5,167.48,5.9687]
[1747434432161,62.16,167.53,167.46,62.16]
[1747434432361,62.16,167.56,167.46,62.16]
[1747434432562,62.12,167.55,167.46,62.16]
[1747434433761,68.0864,167.55,167.46,62.16]
[1747434433964,68.0864,167.55,167.51,5.9678]
[1747434434665,68.0864,167.55,167.52,5.9674]
[1747434435159,68.0864,167.55,167.46,62.16]
[1747434435463,124.28,167.55,167.46,62.16]
[1747434435666,130.66801134,167.55,167.46,62.16]
[1747434436462,5.9689,167.49,167.46,62.16]
[1747434437666,5.969,167.48,167.46,62.16]
[1747434438572,5.9693,167.47,167.44,5.9703]
[1747434438965,124.22,167.51,167.43,62.1]
[1747434439665,5.9698,167.46,167.43,68.0706]
[1747434439866,124.22,167.51,167.43,62.1]
[1747434440169,5.9705,167.44,167.42,3.9083]
[1747434441270,5.9707,167.43,167.42,3.9083]
[1747434441468,62.12,167.45,167.4,62.1]
[1747434441671,62.12,167.45,167.37,76.53246381]
[1747434442070,62.12,167.45,167.38,5.9723]
[1747434442267,62.12,167.45,167.37,76.53246381]
[1747434442670,5.9712,167.42,167.37,76.53246381]
[1747434443066,5.9708,167.43,167.39,5.9719]
[1747434444278,5.9711,167.42,167.39,5.9719]
[1747434444776,5.9711,167.42,167.37,76.53246381]
[1747434444777,62.12,167.45,167.37,76.53246381]
[1747434445275,62.12,167.45,167.39,5.9721]
[1747434445475,62.12,167.45,167.37,76.53246381]
[1747434445674,5.9715,167.41,167.38,5.9723]
[1747434445875,62.12,167.45,167.37,76.53246381]
[1747434446077,5.971,167.42,167.37,76.53246381]
[1747434446880,5.9715,167.41,167.37,76.53246381]
[1747434447180,62.12,167.45,167.37,76.53246381]
[1747434447782,62.12,167.45,167.37,74.58296381]
[1747434448175,5.9716,167.41,167.37,80.55546381]
[1747434448379,5.9716,167.41,167.37,74.58296381]
[1747434448781,5.9716,167.41,167.38,5.9722]
[1747434449081,5.9718,167.4,167.38,5.9722]
[1747434449690,68.0915,167.41,167.37,74.58296381]
[1747434450282,68.0915,167.41,167.38,5.9723]
[1747434450583,62.12,167.41,167.37,74.58296381]
[1747434450881,62.12,167.41,167.39,5.9721]
[1747434451077,62.12,167.44,167.37,74.58296381]
[1747434451278,62.12,167.45,167.37,74.58296381]
[1747434451478,62.12,167.45,167.41,5.9712]
[1747434451679,62.12,167.45,167.37,74.58296381]
[1747434452084,62.12,167.45,167.41,5.9712]
[1747434452279,62.12,167.45,167.37,74.58296381]
[1747434452480,68.0896,167.46,167.37,74.58296381]
[1747434452685,68.0896,167.46,167.43,5.9707]
[1747434452885,62.12,167.46,167.37,74.58296381]
[1747434453185,5.9694,167.47,167.37,74.58296381]
[1747434453594,68.0694,167.47,167.44,5.9701]
[1747434453885,68.0694,167.47,167.41,62.14]
[1747434454080,68.0694,167.47,167.43,5.9705]
[1747434455088,62.1,167.47,167.37,12.46296381]
[1747434456087,62.1,167.47,167.41,5.9713]
[1747434456088,5.97,167.45,167.41,5.9713]
[1747434456280,62.1,167.47,167.37,12.46296381]
[1747434456887,5.9704,167.44,167.4,5.9716]
[1747434457384,62.1,167.47,167.37,12.46296381]
[1747434458588,5.9711,167.42,167.38,5.9721]
[1747434459088,62.1,167.43,167.38,5.9721]
[1747434459989,5.9715,167.41,167.38,5.9721]
[1747434462692,5.9711,167.42,167.39,5.972]
[1747434464592,5.9714,167.41,167.38,5.9723]
[1747434465088,62.1,167.43,167.37,12.46296381]
[1747434465486,62.1,167.43,167.37,8.47506381]
[1747434465687,5.9724,167.38,167.37,8.47506381]
[1747434465882,68.0524,167.38,167.37,8.47506381]
[1747434470293,62.08,167.38,167.29,3.8524]
[1747434470993,5.9751,167.31,167.29,3.8524]
[1747434471193,6.38801134,167.39,167.29,3.8524]
[1747434471194,62.08,167.34,167.29,3.8524]
[1747434471394,5.9753,167.3,167.24,62.08]
[1747434471589,5.9753,167.3,167.25,4.0391]
[1747434471894,5.975,167.31,167.27,5.9761]
[1747434472195,62.08,167.33,167.25,4.0391]
[1747434472395,62.08,167.33,167.27,5.9762]
[1747434472599,62.08,167.33,167.25,4.0391]
[1747434472991,62.08,167.32,167.25,4.0391]
[1747434473595,5.9744,167.33,167.25,4.0391]
[1747434473796,68.0544,167.33,167.25,4.0391]
[1747434473999,62.08,167.33,167.25,4.0391]
[1747434475103,62.08,167.33,167.31,5.9747]
[1747434475506,62.08,167.33,167.25,4.0391]
[1747434475704,62.08,167.33,167.3,5.9749]
[1747434475995,62.08,167.33,167.25,4.0391]
[1747434477100,62.08,167.33,167.3,5.975]
[1747434477405,68.0544,167.33,167.3,5.975]
[1747434478801,62.08,167.33,167.25,4.0391]
[1747434479295,62.08,167.36,167.34,5.9736]
[1747434479498,62.08,167.36,167.28,62.1]
[1747434479703,62.08,167.36,167.34,5.9736]
[1747434479992,62.08,167.36,167.28,62.1]
[1747434480193,62.08,167.36,167.33,5.974]
[1747434480397,62.08,167.36,167.28,62.1]
[1747434480801,5.974,167.34,167.31,5.9747]
[1747434481001,62.08,167.36,167.28,62.1]
[1747434481404,68.0534,167.36,167.32,5.9743]
[1747434481703,62.08,167.36,167.28,62.1]
[1747434482003,62.08,167.36,167.3,5.9751]
[1747434482202,62.08,167.36,167.25,66.1391]
[1747434482501,5.9745,167.33,167.28,5.9759]
[1747434482704,62.08,167.32,167.25,66.1391]
[1747434483204,68.0548,167.32,167.25,66.1391]
[1747434483506,62.08,167.32,167.25,66.1391]
[1747434483899,62.08,167.32,167.29,5.9754]
[1747434484098,62.08,167.32,167.25,66.1391]
[1747434484497,62.08,167.32,167.3,5.9751]
[1747434485406,62.08,167.32,167.31,5.9749]
[1747434485903,62.08,167.32,167.25,66.1391]
[1747434487105,62.08,167.32,167.3,5.9751]
[1747434487405,62.08,167.32,167.25,66.1391]
[1747434487605,62.08,167.32,167.3,5.975]
[1747434488101,62.08,167.32,167.31,5.9749]
[1747434488798,6.38801134,167.38,167.34,5.9737]
[1747434489001,516.14,167.41,167.27,6.38801134]
[1747434489002,124.18,167.37,167.27,6.38801134]
[1747434489412,124.18,167.37,167.35,5.9732]
[1747434489995,124.18,167.37,167.3,62.1]
[1747434491307,130.1529,167.37,167.3,62.1]
[1747434491605,62.08,167.36,167.3,62.1]
[1747434493410,62.08,167.36,167.34,5.9736]
[1747434494309,62.08,167.36,167.33,5.9741]
[1747434494512,68.0532,167.36,167.33,5.9741]
[1747434494708,62.08,167.36,167.3,62.1]
[1747434495616,62.08,167.36,167.34,5.9736]
[1747434496012,68.0729,167.37,167.34,5.9736]
[1747434496213,62.06,167.36,167.3,62.1]
[1747434497415,62.06,167.36,167.34,5.9736]
[1747434498415,62.06,167.36,167.3,62.1]
[1747434499314,62.06,167.36,167.34,5.9736]
[1747434499513,62.06,167.36,167.3,62.1]
[1747434499913,62.06,167.36,167.27,62.06]
[1747434500311,5.9745,167.33,167.29,5.9754]
[1747434500718,62.06,167.32,167.29,5.9754]
[1747434502219,62.06,167.32,167.28,5.9758]
[1747434502420,62.06,167.32,167.25,4.0391]
[1747434502622,5.9749,167.31,167.27,5.9763]
[1747434502813,5.9749,167.31,167.25,4.0391]
[1747434504021,68.0347,167.32,167.28,5.9758]
[1747434504325,62.06,167.32,167.28,5.9758]
[1747434504619,5.9754,167.3,167.26,5.9765]
[1747434504919,62.06,167.32,167.21,62.06]
[1747434505317,5.9759,167.29,167.24,5.9773]
[1747434505520,62.06,167.28,167.21,62.06]
[1747434506323,62.06,167.28,167.24,5.9772]
[1747434506622,62.06,167.28,167.21,62.06]
[1747434507224,62.06,167.28,167.2,3.935]
[1747434507522,62.06,167.28,167.24,5.9774]
[1747434508025,62.06,167.28,167.14,62.06]
[1747434508224,62.06,167.28,167.14,12.38581134]
[1747434508521,5.9776,167.24,167.19,5.9791]
[1747434508725,62.06,167.23,167.19,5.9791]
[1747434508927,62.06,167.23,167.14,5.9978]
[1747434510329,62.08,167.24,167.14,68.0778]
[1747434510725,62.08,167.24,167.22,5.9781]
[1747434510924,62.08,167.24,167.16,62.08]
[1747434511120,62.08,167.24,167.16,68.46801134]
[1747434511326,62.08,167.24,167.23,5.9778]
[1747434512020,653.87979143,167.31,167.26,5.9765]
[1747434512220,62.08,167.29,167.26,5.9765]
[1747434512421,62.06,167.29,167.2,65.9702]
[1747434512621,0.2178,167.36,167.22,6.38801134]
[1747434512828,62.06,167.35,167.25,6.38801134]
[1747434513027,62.06,167.35,167.3,5.9752]
[1747434513732,5.9739,167.34,167.29,5.9755]
[1747434513933,62.06,167.35,167.26,62.08]
[1747434514133,1.204,167.37,167.27,2.0016]
[1747434514329,124.16,167.36,167.27,3.9881]
[1747434514931,5.974,167.34,167.3,5.9751]
[1747434515129,124.16,167.36,167.27,3.9881]
[1747434515330,1.204,167.37,167.27,3.9881]
[1747434515331,62.08,167.35,167.27,3.9881]
[1747434515523,5.9739,167.34,167.3,5.975]
[1747434515836,62.08,167.35,167.27,10.37611134]
[1747434516134,62.08,167.36,167.28,1.86]
[1747434516834,5.9732,167.36,167.28,1.86]
[1747434517536,5.9728,167.37,167.28,1.86]
[1747434517736,62.06,167.37,167.28,1.86]
[1747434518036,68.0328,167.37,167.33,5.9739]
[1747434518235,5.9728,167.37,167.33,5.9739]
[1747434518437,62.06,167.37,167.3,62.08]
[1747434518738,68.0329,167.37,167.32,5.9743]
[1747434519032,5.9729,167.37,167.32,5.9743]
[1747434519230,68.0329,167.37,167.32,5.9743]
[1747434519426,5.9724,167.38,167.3,62.08]
[1747434519833,62.06,167.39,167.3,68.46801134]
[1747434520143,130.0922,167.39,167.35,5.9733]
[1747434520438,5.9722,167.39,167.3,68.46801134]
[1747434520627,62.06,167.39,167.35,5.9732]
[1747434520831,6.38801134,167.44,167.35,5.9732]
[1747434521032,124.12,167.42,167.35,5.9732]
[1747434521735,124.12,167.42,167.3,68.46801134]
[1747434521936,124.12,167.42,167.31,62.06]
[1747434522135,5.972,167.4,167.31,62.06]
[1747434522438,5.972,167.4,167.35,5.9732]
[1747434522639,5.972,167.4,167.31,62.06]
[1747434522838,62.06,167.4,167.31,62.06]
[1747434523038,62.06,167.41,167.31,62.06]
[1747434523238,62.06,167.41,167.33,6.38801134]
[1747434523439,62.06,167.41,167.34,66.0354]
[1747434524833,62.06,167.41,167.38,5.9721]
[1747434525839,62.06,167.41,167.37,5.9726]
[1747434526241,62.06,167.41,167.34,66.0354]
[1747434527541,62.06,167.41,167.38,5.9722]
[1747434527837,62.06,167.41,167.34,66.0354]
[1747434528142,62.06,167.41,167.38,5.9721]
[1747434528841,62.06,167.41,167.34,66.0354]
[1747434529629,68.0317,167.41,167.34,66.0354]
[1747434529832,62.06,167.41,167.36,5.9729]
[1747434530030,5.9718,167.4,167.36,5.9729]
[1747434530234,62.06,167.41,167.34,66.0354]
[1747434530437,62.06,167.41,167.28,1.86]
[1747434530438,124.08,167.41,167.32,62.02]
[1747434530634,5.9726,167.38,167.32,62.02]
[1747434530942,5.9726,167.38,167.34,5.9736]
[1747434531137,124.08,167.41,167.32,62.02]
[1747434531341,5.9718,167.4,167.32,62.02]
[1747434531540,124.08,167.41,167.35,5.9734]
[1747434531745,130.0514,167.41,167.32,62.02]
[1747434532042,124.08,167.41,167.32,62.02]
[1747434532444,5.9719,167.4,167.32,62.02]
[1747434533144,5.9719,167.4,167.36,5.9729]
[1747434533342,130.0514,167.41,167.32,62.02]
[1747434533546,62.04,167.41,167.32,62.02]
[1747434533747,62.04,167.41,167.37,5.9725]
[1747434533946,62.04,167.41,167.32,62.02]
[1747434534247,62.04,167.41,167.33,62.04]
[1747434535248,62.04,167.41,167.39,5.9718]
[1747434535755,62.04,167.41,167.33,62.04]
[1747434536247,68.0115,167.41,167.33,62.04]
[1747434536452,62.04,167.41,167.38,5.9723]
[1747434537653,68.0114,167.41,167.37,5.9726]
[1747434538056,68.0114,167.41,167.33,62.04]
[1747434538451,62.04,167.41,167.33,62.04]
[1747434538756,62.04,167.41,167.38,5.9723]
[1747434539154,62.04,167.41,167.34,6.38801134]
[1747434539355,62.04,167.41,167.34,5.9736]
[1747434539955,5.9726,167.38,167.34,5.9736]
[1747434540147,62.04,167.41,167.32,62.02]
[1747434540353,62.04,167.41,167.2,6.38801134]
[1747434540354,6.38801134,167.4,167.26,62.02]
[1747434540551,62.02,167.39,167.27,62.02]
[1747434541749,5.975,167.31,167.27,62.02]
[1747434541954,62.02,167.33,167.29,5.9755]
[1747434542254,62.02,167.33,167.27,62.02]
[1747434542554,62.02,167.33,167.28,5.9757]
[1747434542754,5.9748,167.32,167.28,5.9757]
[1747434544057,5.9749,167.31,167.27,67.9962]
[1747434544356,62.02,167.33,167.27,62.02]
[1747434545660,5.9747,167.32,167.29,5.9755]
[1747434546561,62.02,167.33,167.3,5.975]
[1747434547361,62.02,167.33,167.27,62.02]
[1747434547661,5.9747,167.32,167.27,62.02]
[1747434548160,5.9747,167.32,167.28,5.9758]
[1747434548459,5.9747,167.32,167.27,62.02]
[1747434548661,67.9943,167.33,167.27,62.02]
[1747434548961,67.9943,167.33,167.29,5.9754]
[1747434549162,62.02,167.33,167.27,62.02]
[1747434549461,62.02,167.33,167.3,5.9751]
[1747434549659,62.02,167.33,167.27,62.02]
[1747434550163,62.02,167.33,167.3,5.975]
[1747434550356,62.02,167.33,167.27,62.02]
[1747434550563,62.04,167.35,167.27,62.02]
[1747434550765,62.04,167.38,167.27,62.02]
[1747434551061,62.04,167.37,167.28,62.04]
[1747434551262,62.04,167.37,167.32,5.9744]
[1747434551463,5.9733,167.36,167.32,5.9744]
[1747434552466,62.04,167.37,167.28,62.04]
[1747434553167,5.9737,167.35,167.31,5.9748]
[1747434553965,5.9733,167.36,167.32,5.9744]
[1747434554368,5.9733,167.36,167.28,62.04]
[1747434554866,68.0128,167.37,167.28,62.04]
[1747434555066,62.04,167.37,167.28,62.04]
[1747434555463,68.0127,167.38,167.28,62.04]
[1747434555666,130.0327,167.38,167.28,62.04]
[1747434556263,68.0127,167.38,167.29,6.38801134]
[1747434556567,5.9718,167.4,167.29,6.38801134]
[1747434556758,62.04,167.41,167.3,5.7053]
[1747434556963,68.0115,167.41,167.37,5.9727]
[1747434557166,62.02,167.4,167.37,5.9727]
[1747434557672,62.02,167.4,167.36,5.9729]
[1747434557859,67.9918,167.4,167.36,5.9729]
[1747434558471,62.02,167.4,167.31,62.04]
[1747434558670,62.02,167.4,167.32,6.38801134]
[1747434558865,62.02,167.4,167.32,68.40801134]
[1747434559065,67.9919,167.4,167.36,5.9728]
[1747434559963,62.02,167.4,167.32,68.40801134]
[1747434561476,62.02,167.4,167.37,5.9726]
[1747434561869,62.02,167.42,167.35,62.0]
[1747434562680,62.02,167.42,167.39,5.972]
[1747434563075,62.02,167.42,167.35,62.0]
[1747434563276,67.9912,167.42,167.38,5.9723]
[1747434563478,62.02,167.42,167.35,62.0]
[1747434564382,62.02,167.42,167.39,5.9719]
[1747434564775,62.02,167.42,167.35,62.0]
[1747434564975,67.9912,167.42,167.38,5.9724]
[1747434566088,62.02,167.42,167.37,5.9726]
[1747434567187,5.9715,167.41,167.37,5.9726]
[1747434570688,5.9715,167.41,167.38,5.9724]
[1747434573290,67.9911,167.42,167.38,5.9724]
[1747434574279,5.9711,167.42,167.38,5.9724]
[1747434574481,137.40505824,167.43,167.36,3.8419]
[1747434574677,137.40505824,167.43,167.36,5.7774]
[1747434574887,62.0,167.44,167.38,6.38801134]
[1747434575290,5.9697,167.46,167.41,5.971]
[1747434575488,62.0,167.45,167.41,5.971]
[1747434575690,62.0,167.45,167.42,5.9708]
[1747434575992,62.0,167.45,167.39,62.0]
[1747434575993,67.9694,167.47,167.39,62.0]
[1747434576182,62.0,167.46,167.39,62.0]
[1747434576484,67.9696,167.46,167.39,62.0]
[1747434576690,67.9696,167.46,167.42,5.9708]
[1747434576886,62.0,167.46,167.42,5.9708]
[1747434577794,62.0,167.46,167.39,62.0]
[1747434578084,62.0,167.46,167.36,65.8419]
[1747434578289,5.9717,167.41,167.37,5.9725]
[1747434578489,67.9517,167.41,167.37,5.9725]
[1747434578691,61.98,167.41,167.33,61.98]
[1747434578989,5.972,167.4,167.36,5.973]
[1747434579391,67.9515,167.41,167.37,5.9726]
[1747434580595,61.98,167.41,167.33,61.98]
[1747434580895,61.98,167.44,167.36,6.38801134]
[1747434581091,61.98,167.44,167.37,65.9192]
[1747434582092,61.98,167.44,167.41,5.971]
[1747434583193,67.9495,167.46,167.41,5.971]
[1747434583692,61.98,167.46,167.37,65.9192]
[1747434583893,61.98,167.46,167.38,1.9154]
[1747434584192,61.98,167.46,167.42,5.9708]
[1747434585098,67.9495,167.46,167.42,5.9708]
[1747434586094,5.9695,167.46,167.42,5.9708]
[1747434588998,67.9295,167.46,167.42,5.9708]
[1747434590206,61.96,167.46,167.43,5.9705]
[1747434591402,67.9298,167.46,167.43,5.9705]
[1747434593203,61.96,167.46,167.38,1.9154]
[1747434594306,5.9701,167.45,167.41,5.9711]
[1747434594500,61.96,167.46,167.41,5.9711]
[1747434594899,5.9703,167.44,167.41,5.9711]
[1747434595807,5.9701,167.45,167.38,1.9154]
[1747434596007,61.96,167.46,167.38,1.9154]
[1747434596309,61.96,167.46,167.43,5.9705]
[1747434597307,5.9694,167.47,167.43,5.9705]
[1747434597508,67.9294,167.47,167.43,5.9705]
[1747434597709,5.9696,167.46,167.42,5.9708]
[1747434599309,5.97,167.45,167.42,5.9708]
[1747434600609,61.96,167.47,167.38,1.9154]
[1747434601406,61.96,167.47,167.4,5.9714]
[1747434602207,61.96,167.47,167.34,6.38801134]
[1747434602404,6.38801134,167.46,167.34,61.94]
[1747434602601,6.38801134,167.43,167.28,516.16]
[1747434602811,123.88,167.42,167.29,61.94]
[1747434603308,123.88,167.42,167.3,5.992]
[1747434603814,123.88,167.42,167.34,5.9736]
[1747434604505,5.9728,167.37,167.34,5.9736]
[1747434604713,61.94,167.38,167.33,5.9742]
[1747434604910,61.94,167.38,167.3,5.992]
[1747434605110,61.94,167.38,167.37,5.9728]
[1747434605710,67.9116,167.41,167.37,5.9728]
[1747434606216,61.94,167.41,167.37,5.9728]
[1747434606713,67.9115,167.41,167.33,61.94]
[1747434606913,523.56501134,167.46,167.33,130.26801134]
[1747434607114,123.9,167.45,167.33,130.26801134]
[1747434607405,61.96,167.45,167.33,130.26801134]
[1747434607611,61.94,167.44,167.33,130.26801134]
[1747434607812,61.94,167.44,167.36,6.38801134]
[1747434608008,61.94,167.44,167.37,129.916]
[1747434608200,5.9692,167.47,167.37,129.916]
[1747434608401,123.9,167.48,167.37,129.916]
[1747434608602,123.9,167.48,167.37,6.016]
[1747434608808,5.9697,167.46,167.42,5.971]
[1747434609112,61.96,167.48,167.38,61.96]
[1747434609313,61.94,167.47,167.38,68.34801134]
[1747434609510,67.9094,167.47,167.43,5.9706]
[1747434609711,61.94,167.47,167.38,68.34801134]
[1747434610109,67.9094,167.47,167.38,68.34801134]
[1747434610309,61.94,167.47,167.38,68.34801134]
[1747434610616,67.9082,167.5,167.45,5.9697]
[1747434611011,61.94,167.5,167.43,61.96]
[1747434611513,67.9082,167.5,167.43,61.96]
[1747434611713,61.94,167.5,167.43,61.96]
[1747434611918,67.9081,167.5,167.43,61.96]
[1747434612111,5.9681,167.5,167.43,61.96]
[1747434612314,123.88,167.51,167.43,61.96]
[1747434613010,123.88,167.51,167.43,67.9305]
[1747434613417,123.88,167.51,167.43,61.96]
[1747434613922,123.88,167.51,167.44,5.9702]
[1747434614117,123.88,167.51,167.43,61.96]
[1747434614320,5.9689,167.48,167.44,5.9701]
[1747434614621,123.88,167.51,167.43,61.96]
[1747434616214,129.8478,167.51,167.43,61.96]
[1747434616820,129.8478,167.51,167.47,5.9692]
[1747434617321,123.88,167.51,167.43,61.96]
[1747434617822,5.9686,167.49,167.45,5.9697]
[1747434618009,123.88,167.51,167.45,5.9697]
[1747434618213,123.88,167.51,167.43,61.96]
[1747434618521,5.9691,167.48,167.43,61.96]
[1747434618819,5.9686,167.49,167.43,61.96]
[1747434619022,123.88,167.51,167.43,61.96]
[1747434619619,5.9682,167.5,167.47,5.969]
[1747434620018,5.9685,167.49,167.43,61.96]
[1747434620212,61.9,167.5,167.43,61.96]
[1747434621321,5.9686,167.49,167.46,5.9692]
[1747434621530,61.9,167.5,167.43,61.96]
[1747434622121,67.8683,167.5,167.46,5.9692]
[1747434622314,61.9,167.5,167.46,5.9692]
[1747434623122,5.9687,167.49,167.46,5.9692]
[1747434623421,61.9,167.5,167.46,5.9692]
[1747434623619,61.9,167.5,167.43,61.96]
[1747434624123,5.9689,167.48,167.44,5.9702]
[1747434624324,61.9,167.5,167.44,5.9702]
[1747434624624,5.9696,167.46,167.43,67.9305]
[1747434625529,5.9696,167.46,167.44,5.9701]
[1747434625731,5.9693,167.47,167.44,5.9701]
[1747434626931,61.9,167.5,167.43,61.96]
[1747434627328,67.8683,167.5,167.46,5.9693]
[1747434628332,5.9685,167.49,167.46,5.9693]
[1747434628730,61.9,167.5,167.46,5.9693]
[1747434628938,67.8684,167.5,167.46,5.9693]
[1747434629135,621.83,167.54,167.43,61.96]
[1747434629333,621.83,167.54,167.44,10.43901134]
[1747434629334,61.88,167.53,167.44,10.43901134]
[1747434629534,61.88,167.53,167.44,74.17321134]
[1747434629739,61.88,167.53,167.5,5.968]
[1747434630137,105.77,167.54,167.48,61.88]
[1747434632239,105.77,167.54,167.51,5.9675]
[1747434632642,41.78,167.54,167.51,5.9675]
[1747434632944,41.78,167.54,167.52,5.9673]
[1747434633640,41.78,167.54,167.48,123.76]
[1747434634239,41.78,167.54,167.53,5.9671]
[1747434635438,41.78,167.54,167.52,67.8473]
[1747434635639,41.78,167.54,167.52,61.88]
[1747434635943,41.78,167.54,167.53,5.9671]
[1747434641151,41.78,167.54,167.52,67.8472]
[1747434641354,41.78,167.54,167.52,61.88]